[Event "ONJK 2024 ABC"]
[Site "Velp, Netherlands"]
[Date "2024.08.05"]
[Round "4.4"]
[White "Ganeshram, Nirupa"]
[Black "Faybish, Dana"]
[Result "1-0"]
[TimeControl "90 minutes + 30 seconds"]
[WhiteElo "1695"]
[BlackElo "1707"]

1. e4 {[%clk 01:30:57]} {[%emt 00:00:02]} c5 {[%clk 01:30:37]} {[%emt
00:00:23]} 2. Nf3 {[%clk 01:31:17]} {[%emt 00:00:11]} d6 {[%clk 01:30:29]}
{[%emt 00:00:38]} 3. c3 {[%clk 01:31:12]} {[%emt 00:00:35]} Nf6 {[%clk
01:30:19]} {[%emt 00:00:40]} 4. Be2 {[%clk 01:30:57]} {[%emt 00:00:45]} g6
{[%clk 01:30:07]} {[%emt 00:00:42]} 5. O-O {[%clk 01:29:53]} {[%emt 00:01:34]}
Bg7 {[%clk 01:29:13]} {[%emt 00:01:24]} 6. d3 {[%clk 01:28:39]} {[%emt
00:01:44]} O-O {[%clk 01:28:07]} {[%emt 00:01:36]} 7. h3 {[%clk 01:25:02]}
{[%emt 00:04:07]} Nc6 {[%clk 01:26:53]} {[%emt 00:01:44]} 8. Be3 {[%clk
01:23:31]} {[%emt 00:02:00]} Qc7 {[%clk 01:18:15]} {[%emt 00:09:09]} 9. Nbd2
{[%clk 01:21:21]} {[%emt 00:02:40]} e5 {[%clk 01:17:10]} {[%emt 00:01:34]} 10.
d4 {[%clk 01:10:02]} {[%emt 00:11:49]} exd4 {[%clk 01:14:51]} {[%emt 00:02:49]}
11. cxd4 {[%clk 01:09:39]} {[%emt 00:00:54]} Re8 {[%clk 01:02:22]} {[%emt
00:12:59]} 12. dxc5 {[%clk 01:00:33]} {[%emt 00:09:36]} dxc5 {[%clk 01:01:48]}
{[%emt 00:01:04]} 13. Bxc5 {[%clk 00:58:19]} {[%emt 00:02:44]} Nxe4 {[%clk
00:58:48]} {[%emt 00:03:30]} 14. Nxe4 {[%clk 00:56:31]} {[%emt 00:02:18]} Rxe4
{[%clk 00:58:10]} {[%emt 00:01:09]} 15. Qc2 {[%clk 00:54:41]} {[%emt 00:02:19]}
Re8 {[%emt 00:05:47]} 16. Bd3 {[%clk 00:51:18]} {[%emt 00:03:51]} Bd7 {[%clk
00:44:46]} {[%emt 00:08:39]} 17. Rad1 {[%clk 00:45:24]} {[%emt 00:06:23]} Rac8
{[%clk 00:43:30]} {[%emt 00:01:47]} 18. Qd2 {[%clk 00:31:36]} {[%emt 00:14:18]}
Red8 {[%clk 00:40:50]} {[%emt 00:03:11]} 19. b3 {[%clk 00:23:29]} {[%emt
00:08:36]} Bf5 {[%clk 00:39:06]} {[%emt 00:02:14]} 20. Qe2 {[%clk 00:18:09]}
{[%emt 00:05:49]} Bxd3 {[%clk 00:33:20]} {[%emt 00:06:17]} 21. Rxd3 {[%clk
00:17:34]} {[%emt 00:01:06]} Rxd3 {[%clk 00:25:40]} {[%emt 00:08:09]} 22. Qxd3
{[%clk 00:17:41]} {[%emt 00:00:23]} Ne5 {[%clk 00:24:19]} {[%emt 00:01:51]} 23.
Nxe5 {[%clk 00:16:50]} {[%emt 00:01:21]} Qxc5 {[%clk 00:23:52]} {[%emt
00:00:57]} 24. Nc4 {[%clk 00:15:34]} {[%emt 00:01:46]} Qc7 {[%clk 00:19:09]}
{[%emt 00:05:12]} 25. Rd1 {[%clk 00:14:15]} {[%emt 00:01:50]} b5 {[%clk
00:16:37]} {[%emt 00:03:02]} 26. Ne3 {[%clk 00:12:52]} {[%emt 00:01:53]} Qa5
{[%clk 00:15:02]} {[%emt 00:02:04]} 27. Qd7 {[%clk 00:10:00]} {[%emt 00:03:23]}
Rf8 {[%clk 00:13:09]} {[%emt 00:02:23]} 28. a4 {[%clk 00:06:20]} {[%emt
00:04:10]} bxa4 {[%clk 00:12:43]} {[%emt 00:00:56]} 29. bxa4 {[%clk 00:06:27]}
{[%emt 00:00:24]} h5 {[%clk 00:08:08]} {[%emt 00:05:04]} 30. Nc4 {[%clk
00:02:01]} {[%emt 00:04:56]} Qc5 {[%clk 00:06:44]} {[%emt 00:01:54]} 31. Ne3
{[%clk 00:01:40]} {[%emt 00:00:51]} Bf6 {[%clk 00:05:54]} {[%emt 00:01:20]} 32.
Qd6 {[%clk 00:01:05]} {[%emt 00:01:04]} Be7 {[%clk 00:02:29]} {[%emt 00:03:55]}
33. Qxc5 {[%clk 00:01:13]} {[%emt 00:00:23]} Bxc5 {[%clk 00:02:58]} {[%emt
00:00:02]} 34. Nc4 {[%clk 00:01:05]} {[%emt 00:00:38]} Rb8 {[%clk 00:02:00]}
{[%emt 00:01:27]} 35. Rc1 {[%clk 00:01:01]} {[%emt 00:00:35]} Rb4 {[%clk
00:01:37]} {[%emt 00:00:51]} 36. a5 {[%clk 00:00:59]} {[%emt 00:00:33]} a6
{[%clk 00:01:05]} {[%emt 00:01:02]} 37. g3 {[%clk 00:00:57]} {[%emt 00:00:33]}
Rb3 {[%clk 00:00:54]} {[%emt 00:00:40]} 38. Kg2 {[%clk 00:01:00]} {[%emt
00:00:27]} Bb4 {[%clk 00:01:02]} {[%emt 00:00:22]} 39. g4 {[%clk 00:00:51]}
{[%emt 00:00:39]} hxg4 {[%clk 00:01:21]} {[%emt 00:00:12]} 40. hxg4 {[%clk
00:01:10]} {[%emt 00:00:11]} Kf8 {[%clk 00:01:21]} {[%emt 00:00:29]} 41. f3
{[%clk 00:01:19]} {[%emt 00:00:21]} Rd3 {[%clk 00:01:18]} {[%emt 00:00:31]} 42.
Rb1 {[%clk 00:01:18]} {[%emt 00:00:34]} Be7 {[%clk 00:00:52]} {[%emt 00:00:55]}
43. Rb6 {[%clk 00:01:01]} {[%emt 00:00:48]} Rc3 {[%clk 00:00:55]} {[%emt
00:00:24]} 44. Ne5 {[%clk 00:01:00]} {[%emt 00:00:33]} Re3 {[%clk 00:00:41]}
{[%emt 00:00:44]} 45. Nc6 {[%clk 00:00:53]} {[%emt 00:00:38]} Bc5 {[%clk
00:00:42]} {[%emt 00:00:29]} 46. Rxa6 {[%clk 00:01:00]} {[%emt 00:00:22]} Re2+
{[%clk 00:00:38]} {[%emt 00:00:34]} 47. Kg3 {[%clk 00:00:53]} {[%emt 00:00:37]}
Bd6+ {[%clk 00:01:05]} {[%emt 00:00:02]} 48. f4 {[%clk 00:00:48]} {[%emt
00:00:36]} Re3+ {[%clk 00:01:19]} {[%emt 00:00:15]} 49. Kf2 {[%clk 00:01:05]}
{[%emt 00:00:14]} Bxf4 {[%clk 00:01:24]} {[%emt 00:00:25]} 50. Ra8+ {[%clk
00:01:08]} {[%emt 00:00:27]} Kg7 {[%clk 00:01:16]} {[%emt 00:00:38]} 51. a6
{[%clk 00:01:23]} {[%emt 00:00:15]} Re6 {[%clk 00:01:04]} {[%emt 00:00:41]} 52.
Rc8 {[%clk 00:01:17]} {[%emt 00:00:37]} Be3+ {[%clk 00:01:13]} {[%emt
00:00:21]} 53. Kf3 {[%clk 00:01:18]} {[%emt 00:00:28]} Bb6 {[%clk 00:00:45]}
{[%emt 00:00:57]} 54. a7 {[%clk 00:01:02]} {[%emt 00:00:47]} Bxa7 {[%clk
00:00:39]} {[%emt 00:00:36]} 55. Nxa7 {[%clk 00:01:26]} {[%emt 00:00:06]} Ra6
{[%clk 00:00:48]} {[%emt 00:00:20]} 56. Nb5 {[%clk 00:00:56]} {[%emt 00:01:01]}
Rb6 {[%clk 00:00:59]} {[%emt 00:00:20]} 57. Nd4 {[%clk 00:01:04]} {[%emt
00:00:22]} Ra6 {[%clk 00:00:41]} {[%emt 00:00:46]} 58. Rc5 {[%clk 00:00:45]}
{[%emt 00:00:50]} Kf6 {[%clk 00:00:52]} {[%emt 00:00:18]} 59. g5+ {[%clk
00:00:47]} {[%emt 00:00:29]} Kg7 {[%clk 00:01:06]} {[%emt 00:00:16]} 60. Rd5
{[%clk 00:00:43]} {[%emt 00:00:34]} Ra7 {[%clk 00:01:10]} {[%emt 00:00:26]} 61.
Kf4 {[%clk 00:00:58]} {[%emt 00:00:15]} Rb7 {[%clk 00:00:57]} {[%emt 00:00:40]}
62. Ke5 {[%clk 00:00:35]} {[%emt 00:00:56]} Re7+ {[%clk 00:00:59]} {[%emt
00:00:26]} 63. Kd6 {[%clk 00:00:39]} {[%emt 00:00:29]} Rb7 {[%clk 00:00:59]}
{[%emt 00:00:28]} 64. Ke5 {[%clk 00:00:34]} {[%emt 00:00:36]} Re7+ {[%clk
00:01:20]} {[%emt 00:00:09]} 65. Kf4 {[%clk 00:00:51]} {[%emt 00:00:14]} Rc7
{[%clk 00:01:19]} {[%emt 00:00:31]} 66. Nb5 {[%clk 00:00:59]} {[%emt 00:00:21]}
Re7 {[%clk 00:01:26]} {[%emt 00:00:23]} 67. Nd6 {[%clk 00:01:05]} {[%emt
00:00:24]} Re6 {[%clk 00:00:52]} {[%emt 00:01:03]} 68. Ne4 {[%clk 00:00:58]}
{[%emt 00:00:39]} Re7 {[%clk 00:01:04]} {[%emt 00:00:17]} 69. Rd8 {[%clk
00:00:45]} {[%emt 00:00:44]} Ra7 {[%clk 00:01:06]} {[%emt 00:00:27]} 70. Nf6
{[%clk 00:00:43]} {[%emt 00:00:32]} Ra4+ {[%clk 00:01:07]} {[%emt 00:00:29]} 71.
Ke3 {[%clk 00:01:00]} {[%emt 00:00:14]} Ra7 {[%clk 00:01:12]} {[%emt 00:00:25]}
72. Rg8# {[%clk 00:01:22]} {[%emt 00:00:08]} 1-0

[Event "ONJK 2024 ABC"]
[Site "Velp, Netherlands"]
[Date "2024.08.05"]
[Round "4.5"]
[White "Bernfeld, Ben"]
[Black "Hesse, Lucas"]
[Result "1/2-1/2"]
[TimeControl "90 minutes + 30 seconds"]
[WhiteElo "1438"]
[BlackElo "1708"]

1. e4 {[%clk 01:30:59]} d5 {[%clk 01:30:56]} {[%emt 00:00:04]} 2. exd5 {[%clk
01:31:25]} {[%emt 00:00:04]} Qxd5 {[%clk 01:31:19]} {[%emt 00:00:07]} 3. Nc3
{[%clk 01:31:49]} {[%emt 00:00:07]} Qa5 {[%clk 01:31:37]} {[%emt 00:00:12]} 4.
Nf3 {[%clk 01:32:03]} {[%emt 00:00:16]} Bg4 {[%clk 01:31:54]} {[%emt 00:00:13]}
5. Be2 {[%clk 01:32:08]} {[%emt 00:00:25]} Nf6 {[%clk 01:31:56]} {[%emt
00:00:28]} 6. h3 {[%clk 01:31:31]} {[%emt 00:01:07]} Bh5 {[%clk 01:32:14]}
{[%emt 00:00:11]} 7. O-O {[%clk 01:31:22]} {[%emt 00:00:39]} e6 {[%clk
01:32:39]} {[%emt 00:00:06]} 8. d4 {[%clk 01:31:16]} {[%emt 00:00:36]} c6
{[%clk 01:33:02]} {[%emt 00:00:06]} 9. Bf4 {[%clk 01:30:47]} {[%emt 00:01:00]}
Bb4 {[%clk 01:31:55]} {[%emt 00:01:38]} 10. Qd3 {[%clk 01:27:43]} {[%emt
00:03:33]} Bg6 {[%clk 01:31:13]} {[%emt 00:01:12]} 11. Qd2 {[%clk 01:26:03]}
{[%emt 00:02:10]} Ne4 {[%clk 01:28:19]} {[%emt 00:03:24]} 12. Qe3 {[%clk
01:19:41]} {[%emt 00:06:51]} Nxc3 {[%clk 01:18:56]} {[%emt 00:09:53]} 13. bxc3
{[%clk 01:17:07]} {[%emt 00:03:04]} Bxc3 {[%clk 01:17:23]} {[%emt 00:02:03]} 14.
Rab1 {[%clk 01:13:34]} {[%emt 00:04:04]} Bb4 {[%clk 01:15:36]} {[%emt
00:02:16]} 15. Qb3 {[%clk 01:07:56]} {[%emt 00:06:09]} c5 {[%clk 01:09:59]}
{[%emt 00:06:07]} 16. dxc5 {[%clk 01:04:18]} {[%emt 00:04:08]} Nc6 {[%clk
01:09:14]} {[%emt 00:01:14]} 17. Ne5 {[%clk 00:51:00]} {[%emt 00:13:48]} Nd4
{[%clk 01:03:56]} {[%emt 00:05:49]} 18. Qxb4 {[%clk 00:44:47]} {[%emt
00:06:43]} Nxe2+ {[%clk 01:00:45]} {[%emt 00:03:40]} 19. Kh2 {[%clk 00:43:05]}
{[%emt 00:02:13]} Qxb4 {[%clk 01:01:03]} {[%emt 00:00:12]} 20. Rxb4 {[%clk
00:43:28]} {[%emt 00:00:07]} Nxf4 {[%clk 01:01:11]} {[%emt 00:00:22]} 21. Rxf4
{[%clk 00:43:52]} {[%emt 00:00:07]} Rc8 {[%clk 01:00:00]} {[%emt 00:01:40]} 22.
Nxg6 {[%clk 00:41:37]} {[%emt 00:02:44]} hxg6 {[%clk 00:59:40]} {[%emt
00:00:51]} 23. Rb1 {[%clk 00:38:50]} {[%emt 00:03:17]} Rh5 {[%clk 00:57:02]}
{[%emt 00:03:08]} 24. Rxb7 {[%clk 00:34:44]} {[%emt 00:04:36]} Rf5 {[%clk
00:56:46]} {[%emt 00:00:46]} 25. Ra4 {[%clk 00:24:18]} {[%emt 00:10:56]} Rfxc5
{[%clk 00:53:09]} {[%emt 00:04:07]} 26. Raxa7 {[%clk 00:23:06]} {[%emt
00:01:43]} Rf5 {[%clk 00:53:02]} {[%emt 00:00:37]} 27. f3 {[%clk 00:19:17]}
{[%emt 00:04:18]} g5 {[%clk 00:50:45]} {[%emt 00:02:46]} 28. a4 {[%clk
00:17:06]} {[%emt 00:02:42]} g6 {[%clk 00:49:17]} {[%emt 00:01:59]} 29. Rc7
{[%clk 00:11:35]} {[%emt 00:06:00]} Rxc7 {[%clk 00:47:23]} {[%emt 00:02:23]} 30.
Rxc7 {[%clk 00:11:57]} {[%emt 00:00:08]} Ra5 {[%clk 00:47:45]} {[%emt
00:00:08]} 31. Rc4 {[%clk 00:11:27]} {[%emt 00:01:02]} Ke7 {[%clk 00:45:59]}
{[%emt 00:02:16]} 32. Kg3 {[%clk 00:10:15]} {[%emt 00:01:41]} Kd6 {[%clk
00:44:13]} {[%emt 00:02:15]} 33. f4 {[%clk 00:09:42]} {[%emt 00:01:04]} Kd5
{[%clk 00:41:50]} {[%emt 00:02:53]} 34. Rb4 {[%clk 00:09:58]} {[%emt 00:00:15]}
Kc5 {[%clk 00:39:19]} {[%emt 00:03:00]} 35. c3 {[%clk 00:09:31]} {[%emt
00:00:57]} Kd5 {[%clk 00:38:50]} {[%emt 00:00:59]} 36. fxg5 {[%clk 00:08:40]}
{[%emt 00:01:21]} Rc5 {[%clk 00:38:45]} {[%emt 00:00:35]} 37. Rb3 {[%clk
00:07:36]} {[%emt 00:01:34]} Kc4 {[%clk 00:38:36]} {[%emt 00:00:39]} 38. Ra3
{[%clk 00:08:01]} {[%emt 00:00:05]} Rxg5+ {[%clk 00:38:47]} {[%emt 00:00:19]}
39. Kf3 {[%clk 00:08:17]} {[%emt 00:00:15]} Ra5 {[%clk 00:37:52]} {[%emt
00:01:25]} 40. g4 {[%clk 00:08:02]} {[%emt 00:00:45]} g5 {[%clk 00:37:54]}
{[%emt 00:00:28]} 41. Ke4 {[%clk 00:08:05]} {[%emt 00:00:28]} f5 {[%clk
00:37:49]} {[%emt 00:00:34]} 42. Kf3 {[%clk 00:08:16]} {[%emt 00:00:19]} f4
{[%clk 00:36:27]} {[%emt 00:01:52]} 43. h4 {[%clk 00:07:50]} {[%emt 00:00:56]}
gxh4 {[%clk 00:36:38]} {[%emt 00:00:19]} 44. Kxf4 {[%clk 00:08:14]} {[%emt
00:00:06]} e5 {[%clk 00:36:59]} {[%emt 00:00:10]} 45. Kf5 {[%clk 00:07:23]}
{[%emt 00:01:20]} h3 {[%clk 00:31:41]} {[%emt 00:05:48]} 46. Ra1 {[%clk
00:06:37]} {[%emt 00:01:16]} Kxc3 {[%clk 00:31:50]} {[%emt 00:00:20]} 47. g5
{[%clk 00:06:50]} {[%emt 00:00:17]} e4+ {[%clk 00:31:29]} {[%emt 00:00:52]} 48.
Kxe4 {[%clk 00:06:15]} {[%emt 00:01:05]} Rxg5 {[%clk 00:30:55]} {[%emt
00:01:05]} 49. a5 {[%clk 00:05:10]} {[%emt 00:01:35]} h2 {[%clk 00:30:50]}
{[%emt 00:00:34]} 50. Rh1 {[%clk 00:05:28]} {[%emt 00:00:12]} Rxa5 {[%clk
00:28:01]} {[%emt 00:03:20]} 1/2-1/2

[Event "ONJK 2024 ABC"]
[Site "Velp, Netherlands"]
[Date "2024.08.05"]
[Round "4.6"]
[White "Musabayev, Maxim"]
[Black "Madularea, David"]
[Result "1/2-1/2"]
[TimeControl "90 minutes + 30 seconds"]
[WhiteElo "1824"]
[BlackElo "2190"]

1. e4 {[%clk 01:30:57]} {[%emt 00:00:02]} a6 {[%clk 01:30:37]} {[%emt
00:00:24]} 2. d4 {[%clk 01:31:21]} {[%emt 00:00:06]} e6 {[%clk 01:31:03]}
{[%emt 00:00:04]} 3. Nf3 {[%clk 01:31:32]} {[%emt 00:00:19]} d5 {[%clk
01:31:28]} {[%emt 00:00:05]} 4. exd5 {[%clk 01:31:55]} {[%emt 00:00:06]} exd5
{[%clk 01:31:55]} {[%emt 00:00:04]} 5. Bd3 {[%clk 01:32:15]} {[%emt 00:00:11]}
Bd6 {[%clk 01:32:20]} {[%emt 00:00:04]} 6. O-O {[%clk 01:32:10]} {[%emt
00:00:34]} Ne7 {[%clk 01:32:46]} {[%emt 00:00:04]} 7. Nbd2 {[%clk 01:32:25]}
{[%emt 00:00:17]} O-O {[%clk 01:32:13]} {[%emt 00:01:02]} 8. c3 {[%clk
01:29:15]} {[%emt 00:03:40]} Bf5 {[%clk 01:25:55]} {[%emt 00:06:48]} 9. Qc2
{[%clk 01:29:03]} {[%emt 00:00:43]} Bxd3 {[%clk 01:17:52]} {[%emt 00:08:32]} 10.
Qxd3 {[%clk 01:29:25]} {[%emt 00:00:08]} Ng6 {[%clk 01:18:08]} {[%emt
00:00:15]} 11. Re1 {[%clk 01:27:57]} {[%emt 00:01:58]} Nf4 {[%clk 01:14:24]}
{[%emt 00:04:13]} 12. Qf5 {[%clk 01:26:37]} {[%emt 00:01:50]} g6 {[%clk
01:01:55]} {[%emt 00:12:59]} 13. Qc2 {[%clk 01:26:57]} {[%emt 00:00:10]} Qf6
{[%clk 00:58:56]} {[%emt 00:03:29]} 14. Nf1 {[%clk 01:24:40]} {[%emt 00:02:47]}
Nd7 {[%clk 00:57:53]} {[%emt 00:01:33]} 15. Bxf4 {[%clk 01:14:58]} {[%emt
00:10:12]} Bxf4 {[%clk 00:54:28]} {[%emt 00:03:54]} 16. Ne3 {[%clk 01:13:08]}
{[%emt 00:02:21]} Qd6 {[%clk 00:52:16]} {[%emt 00:02:41]} 17. Ng4 {[%clk
01:06:42]} {[%emt 00:06:56]} h5 {[%clk 00:52:01]} {[%emt 00:00:45]} 18. Nge5
{[%clk 01:05:30]} {[%emt 00:01:43]} Rfe8 {[%clk 00:52:18]} {[%emt 00:00:13]} 19.
Nd3 {[%clk 01:03:53]} {[%emt 00:02:07]} Qf6 {[%clk 00:35:28]} {[%emt 00:17:20]}
20. Nxf4 {[%clk 01:03:20]} {[%emt 00:01:03]} Qxf4 {[%clk 00:35:51]} {[%emt
00:00:05]} 21. Qd2 {[%clk 01:02:49]} {[%emt 00:01:02]} Qd6 {[%clk 00:31:52]}
{[%emt 00:04:30]} 22. Qh6 {[%clk 00:58:24]} {[%emt 00:04:54]} b6 {[%clk
00:30:00]} {[%emt 00:02:22]} 23. Re3 {[%clk 00:56:21]} {[%emt 00:02:33]} Rxe3
{[%clk 00:27:22]} {[%emt 00:03:09]} 24. Qxe3 {[%clk 00:56:18]} {[%emt
00:00:33]} Nf6 {[%clk 00:26:23]} {[%emt 00:01:29]} 25. Qe5 {[%clk 00:55:57]}
{[%emt 00:00:52]} Qc6 {[%clk 00:25:49]} {[%emt 00:01:03]} 26. Qf4 {[%clk
00:55:19]} {[%emt 00:01:07]} Re8 {[%clk 00:24:57]} {[%emt 00:01:23]} 27. Ne5
{[%clk 00:51:04]} {[%emt 00:04:45]} Qd6 {[%clk 00:24:47]} {[%emt 00:00:40]} 28.
f3 {[%clk 00:49:17]} {[%emt 00:02:18]} Re7 {[%clk 00:22:19]} {[%emt 00:02:57]}
29. Kf2 {[%clk 00:47:48]} {[%emt 00:01:59]} Nd7 {[%clk 00:19:34]} {[%emt
00:03:15]} 30. Re1 {[%clk 00:45:51]} {[%emt 00:02:27]} Kg7 {[%clk 00:18:34]}
{[%emt 00:01:30]} 31. Qg5 {[%clk 00:43:35]} {[%emt 00:02:46]} Qf6 {[%clk
00:16:45]} {[%emt 00:02:19]} 32. Qxf6+ {[%clk 00:40:17]} {[%emt 00:03:48]} Kxf6
{[%clk 00:17:09]} {[%emt 00:00:05]} 33. Nxd7+ {[%clk 00:38:19]} {[%emt
00:02:28]} 1/2-1/2

[Event "ONJK 2024 ABC"]
[Site "Velp, Netherlands"]
[Date "2024.08.05"]
[Round "4.7"]
[White "Blok, Xaveer"]
[Black "Balde, Esko"]
[Result "1-0"]
[TimeControl "90 minutes + 30 seconds"]
[WhiteElo "1885"]
[BlackElo "1637"]

1. e4 {[%clk 01:30:55]} {[%emt 00:00:04]} c5 {[%clk 01:30:59]} {[%emt
00:00:03]} 2. c3 {[%clk 01:31:18]} {[%emt 00:00:06]} Nf6 {[%clk 01:30:48]}
{[%emt 00:00:42]} 3. e5 {[%clk 01:31:41]} {[%emt 00:00:07]} Nd5 {[%clk
01:31:14]} {[%emt 00:00:03]} 4. Nf3 {[%clk 01:32:05]} {[%emt 00:00:06]} Nc6
{[%clk 01:30:06]} {[%emt 00:01:38]} 5. Bc4 {[%clk 01:32:18]} {[%emt 00:00:17]}
Nb6 {[%clk 01:30:26]} {[%emt 00:00:11]} 6. Bb3 {[%clk 01:32:42]} {[%emt
00:00:05]} c4 {[%clk 01:22:55]} {[%emt 00:08:02]} 7. Bc2 {[%clk 01:33:02]}
{[%emt 00:00:10]} d6 {[%clk 01:22:04]} {[%emt 00:01:21]} 8. exd6 {[%clk
01:33:11]} {[%emt 00:00:20]} e6 {[%clk 01:20:43]} {[%emt 00:01:51]} 9. O-O
{[%clk 01:32:08]} {[%emt 00:01:32]} Bxd6 {[%clk 01:21:03]} {[%emt 00:00:11]} 10.
d3 {[%clk 01:29:29]} {[%emt 00:03:09]} cxd3 {[%clk 01:08:09]} {[%emt 00:13:24]}
11. Qxd3 {[%clk 01:28:00]} {[%emt 00:01:58]} Ne5 {[%clk 01:05:34]} {[%emt
00:03:05]} 12. Nxe5 {[%clk 01:18:05]} {[%emt 00:10:24]} Bxe5 {[%clk 01:05:59]}
{[%emt 00:00:05]} 13. Qb5+ {[%clk 01:17:04]} {[%emt 00:01:31]} Nd7 {[%clk
01:06:00]} {[%emt 00:00:30]} 14. Rd1 {[%clk 01:15:38]} {[%emt 00:01:54]} a6
{[%clk 01:00:30]} {[%emt 00:06:02]} 15. Qe2 {[%clk 01:13:52]} {[%emt 00:02:16]}
Qc7 {[%clk 00:58:16]} {[%emt 00:02:44]} 16. h3 {[%clk 01:13:19]} {[%emt
00:01:03]} O-O {[%clk 00:54:56]} {[%emt 00:03:50]} 17. Nd2 {[%clk 01:12:33]}
{[%emt 00:01:15]} g6 {[%clk 00:43:46]} {[%emt 00:11:41]} 18. Nc4 {[%clk
01:08:20]} {[%emt 00:04:43]} Bh2+ {[%clk 00:37:11]} {[%emt 00:07:04]} 19. Kh1
{[%clk 01:08:11]} {[%emt 00:00:39]} b5 {[%clk 00:32:00]} {[%emt 00:05:42]} 20.
Ne3 {[%clk 01:07:49]} {[%emt 00:00:51]} Be5 {[%clk 00:31:20]} {[%emt 00:01:11]}
21. Ng4 {[%clk 01:06:28]} {[%emt 00:01:51]} Bf4 {[%clk 00:27:00]} {[%emt
00:04:50]} 22. Rxd7 {[%clk 01:03:01]} {[%emt 00:03:56]} Bxd7 {[%clk 00:25:32]}
{[%emt 00:01:59]} 23. Nf6+ {[%clk 01:03:26]} {[%emt 00:00:04]} Kg7 {[%clk
00:24:36]} {[%emt 00:01:27]} 24. Bxf4 {[%clk 00:57:25]} {[%emt 00:06:30]} Qxf4
{[%clk 00:23:26]} {[%emt 00:01:40]} 25. Nxd7 {[%clk 00:57:48]} {[%emt
00:00:07]} Rfd8 {[%clk 00:23:22]} {[%emt 00:00:34]} 26. Rd1 {[%clk 00:57:52]}
{[%emt 00:00:25]} Ra7 {[%clk 00:20:40]} {[%emt 00:03:13]} 27. Nc5 {[%clk
00:56:11]} {[%emt 00:02:11]} Rxd1+ {[%clk 00:16:34]} {[%emt 00:04:37]} 28. Bxd1
{[%clk 00:56:20]} {[%emt 00:00:19]} Qd6 {[%clk 00:14:20]} {[%emt 00:02:44]} 29.
Nb3 {[%clk 00:55:44]} {[%emt 00:01:07]} Rd7 {[%clk 00:13:23]} {[%emt 00:01:27]}
30. Bc2 {[%clk 00:55:58]} {[%emt 00:00:14]} Qc7 {[%clk 00:12:08]} {[%emt
00:01:46]} 31. Nd4 {[%clk 00:53:53]} {[%emt 00:02:35]} Qc4 {[%clk 00:09:23]}
{[%emt 00:03:16]} 32. Qxc4 {[%clk 00:51:51]} {[%emt 00:02:32]} bxc4 {[%clk
00:09:48]} {[%emt 00:00:05]} 33. f4 {[%clk 00:51:00]} {[%emt 00:01:20]} Kf6
{[%clk 00:09:25]} {[%emt 00:00:54]} 34. Kg1 {[%clk 00:50:18]} {[%emt 00:01:11]}
e5 {[%clk 00:08:49]} {[%emt 00:01:07]} 35. fxe5+ {[%clk 00:50:43]} {[%emt
00:00:04]} Kxe5 {[%clk 00:09:09]} {[%emt 00:00:10]} 36. Kf2 {[%clk 00:50:43]}
{[%emt 00:00:30]} Rb7 {[%clk 00:08:38]} {[%emt 00:01:01]} 37. b3 {[%clk
00:50:25]} {[%emt 00:00:48]} f5 {[%clk 00:05:58]} {[%emt 00:03:11]} 38. Ke3
{[%clk 00:48:49]} {[%emt 00:02:06]} f4+ {[%clk 00:05:30]} {[%emt 00:00:58]} 39.
Kf3 {[%clk 00:49:12]} {[%emt 00:00:07]} cxb3 {[%clk 00:05:52]} {[%emt
00:00:08]} 40. axb3 {[%clk 00:48:58]} {[%emt 00:00:42]} Rc7 {[%clk 00:06:09]}
{[%emt 00:00:14]} 41. Ne2 {[%clk 00:49:12]} {[%emt 00:00:16]} g5 {[%clk
00:06:28]} {[%emt 00:00:12]} 42. Bd3 {[%clk 00:45:49]} {[%emt 00:03:53]} a5
{[%clk 00:06:34]} {[%emt 00:00:24]} 43. Kg4 {[%clk 00:42:03]} {[%emt 00:04:15]}
Rd7 {[%clk 00:05:27]} {[%emt 00:01:38]} 44. Nd4 {[%clk 00:41:24]} {[%emt
00:01:09]} Rc7 {[%clk 00:04:43]} {[%emt 00:01:14]} 45. Nf3+ {[%clk 00:41:42]}
{[%emt 00:00:12]} Kd5 {[%clk 00:03:33]} {[%emt 00:01:40]} 46. Bc4+ {[%clk
00:37:59]} {[%emt 00:04:13]} Kd6 {[%clk 00:03:16]} {[%emt 00:00:47]} 47. Nxg5
{[%clk 00:37:33]} {[%emt 00:00:55]} a4 {[%clk 00:02:25]} {[%emt 00:01:21]} 48.
Ne4+ {[%clk 00:37:45]} {[%emt 00:00:16]} Ke5 {[%clk 00:02:24]} {[%emt
00:00:32]} 49. Nd2 {[%clk 00:36:00]} {[%emt 00:02:14]} a3 {[%clk 00:02:28]}
{[%emt 00:00:27]} 50. b4 {[%emt 00:01:24]} Ra7 {[%clk 00:02:49]} 51. Ba2 {[%clk
00:34:10]} {[%emt 00:01:34]} h5+ {[%clk 00:01:53]} {[%emt 00:01:27]} 52. Kf3
{[%clk 00:33:25]} {[%emt 00:01:13]} Rc7 {[%clk 00:01:43]} {[%emt 00:00:41]} 53.
Nc4+ {[%clk 00:32:34]} {[%emt 00:01:21]} Kf5 {[%clk 00:01:32]} {[%emt
00:00:42]} 54. b5 {[%clk 00:32:33]} {[%emt 00:00:29]} Rd7 {[%clk 00:01:30]}
{[%emt 00:00:34]} 55. Bb1+ {[%clk 00:32:28]} {[%emt 00:00:34]} Kf6 {[%clk
00:01:37]} {[%emt 00:00:23]} 56. Nxa3 {[%clk 00:32:27]} {[%emt 00:00:31]} Ra7
{[%clk 00:01:43]} {[%emt 00:00:25]} 57. Nc4 {[%clk 00:32:25]} {[%emt 00:00:32]}
Rc7 {[%clk 00:01:38]} {[%emt 00:00:35]} 58. Bd3 {[%clk 00:32:22]} {[%emt
00:00:33]} Rb7 {[%clk 00:01:13]} {[%emt 00:00:55]} 59. b6 {[%clk 00:32:35]}
{[%emt 00:00:17]} Rd7 {[%clk 00:01:19]} {[%emt 00:00:25]} 60. Be4 {[%clk
00:32:47]} {[%emt 00:00:17]} 1-0